Cogmind - Beta 13 @@@ ROGUE MODE // 2024.03.12 @ 15:51:25 // Winter2019/RPGLIKE Player: H3-RMN Result: Core destroyed Performance ------------- Evolutions (0) 0 Regions Visited (1) 200 Robots Destroyed (16) 80 Value Destroyed (397) 397 Prototype IDs (2) 40 Alien Tech Used (0) 0 Bonus (0) 0 TOTAL SCORE: 717 Bonus ------- None Cogmind --------- Core Integrity 0/600 Matter 300/300 Energy 99/100 System Corruption 14% Temperature Cool (0) Movement Core (50) Location -10/Materials Parts ------- > --- POWER (1) -------- (None) > --- PROPULSION (2) --- (None) > --- UTILITY (2) ------ (None) > --- WEAPON (2) ------- Assault Rifle Light Assault Rifle > --- INVENTORY (2) ---- Light Treads Tractor Beam Peak State ------------ > --- POWER ------------ Ion Engine > --- PROPULSION ------- Light Treads Wheel > --- UTILITY ---------- Improved Terrain Scanner > --- WEAPON ----------- Medium Laser Light Assault Rifle > --- INVENTORY -------- Light Treads [Rating: 8] Favorites ----------- Power Ion Engine Engine Ion Engine Propulsion Wheel Treads Light Treads Wheel Wheel Hover Unit Hover Unit Utility Improved Terrain Scanner Device Improved Terrain Scanner Weapon Light Assault Rifle Energy Gun Medium Laser Ballistic Gun Light Assault Rifle Build | -11 -10 ------- Run | Yrd Mat Slots Evolved 3 | 3 . Power . | . . Propulsion 1 | 1 . Utility 1 | 1 . Weapon 1 | 1 . Parts Attached 10 | 6 4 Power 1 | 1 . Engine 1 | 1 . Core . | . . Reactor . | . . Propulsion 3 | 2 1 Treads 1 | 1 . Leg . | . . Wheel 1 | 1 . Hover 1 | . 1 Flight . | . . Utility 2 | 1 1 Device 2 | 1 1 Storage . | . . Processor . | . . Hackware . | . . Protection . | . . Artifact . | . . Weapon 4 | 2 2 Energy Gun 1 | 1 . Energy Cannon . | . . Ballistic Gun 3 | 1 2 Ballistic Cannon . | . . Launcher . | . . Special Weapon . | . . Impact Weapon . | . . Slashing Weapon . | . . Piercing Weapon . | . . Special Melee Weapon . | . . Unidentified Prototypes . | . . Parts Lost 3 | . 3 Power . | . . Propulsion 1 | . 1 Utility 2 | . 2 Weapon . | . . Highest Loss Streak 1 | . 1 To Critical Strikes . | . . Average Slot Usage (%) 59 | . 59 Engine 1 | . 1 Treads 1 | . 1 Wheel 1 | . 1 Hover 1 | . 1 Device 23 | . 23 Energy Gun 4 | . 4 Ballistic Gun 23 | . 23 Naked Turns . | . . Heaviest Build 9 | 9 9 Greatest Support 20 | 20 10 Greatest Overweight (x) 1 | . 1 Average Overweight (x) . | . . Largest Inventory Capacity 2 | 2 2 Average Capacity 1 | 1 2 Most Carried 2 | 2 2 Average Carried 1 | . 1 Final Capacity 2 | 2 2 Final Carried 2 | 1 2 Class Distribution -------------------- 100% | Mutant Dominant Class ---------------- Mutant | -10/Materials Resources | -11 -10 ----------- Run | Yrd Mat Matter Collected 432 | 262 170 Remotely . | . . Salvage Created 470 | 10 460 Parts 43 | 4 39 Haulers Intercepted 1 | . 1 Recyclers Shooed 6 | . 6 Parts Field Recycled . | . . Retrieved Matter . | . . Parts Self-Destructed . | . . Prevented . | . . Kills | -11 -10 ------- Run | Yrd Mat Combat Hostiles Destroyed 14 | 1 13 Melee 2 | . 2 Guns 12 | 1 11 Classes Destroyed 5 | 2 3 Tunneler 1 | 1 . Hauler 1 | . 1 Swarmer 5 | . 5 Grunt 8 | . 8 Demolisher 1 | 1 . Best Kill Streak 3 | 1 3 Combat Bots Only 3 | 1 3 Max Kills in Single Turn 1 | 1 1 Gunslinging . | . . Exploded . | . . Melee 1 | . 1 Uniques/NPCs Destroyed . | . . Combat | -11 -10 -------- Run | Yrd Mat Hostile Shots Fired 128 | 1 127 Missed 33 | . 33 Damage Taken 1059 | 51 1008 Core 879 | 40 839 Absorbed by Shields . | . . Redirected to Core 482 | 40 442 Core Remaining (%) 93 | 93 . Volleys Fired 61 | 3 58 Largest 2 | 2 2 Hottest 70 | 70 70 Shots Fired 122 | 6 116 Gun 122 | 6 116 Cannon . | . . Launcher . | . . Special . | . . Kinetic 100 | 3 97 Thermal 22 | 3 19 Explosive . | . . Electromagnetic . | . . Robot Hit Streak 11 | 2 11 Robot Miss Streak 3 | 2 3 Penetration Max . | . . Secondary Targets 1 | . 1 Max Gunslinging Chain 1 | . 1 Shots Hit Robots 84 | 2 82 Core Hits 40 | 2 38 Critical Kills . | . . Critical Parts Destroyed 1 | . 1 Critical Strikes 1 | . 1 Destroy 1 | . 1 Melee Attacks . | . . Impact . | . . Slashing . | . . Piercing . | . . Sneak Attacks . | . . Combat Hostiles . | . . Follow-up Attacks . | . . Damage Inflicted 1032 | 38 994 Guns 880 | 38 842 Cannons . | . . Explosions . | . . Melee . | . . Ramming 152 | . 152 Kinetic 705 | . 705 Thermal 175 | 38 137 Explosive . | . . Electromagnetic . | . . Impact . | . . Slashing . | . . Piercing . | . . Highest Corruption 14 | . 14 Average Corruption 4 | . 4 Corruption Purged . | . . Corruption Blocked . | . . Effects 2 | . 2 Matter Fused 2 | . 2 Overload Shots . | . . Overflow Damage . | . . Projectiles . | . . Explosions . | . . Melee . | . . Knockbacks 2 | . 2 Impact 2 | . 2 Kinetic . | . . Secondary . | . . Self-Inflicted Damage 61 | . 61 Shots . | . . Rammed 56 | . 56 Targets Rammed 56 | . 56 Kicked . | . . Crushed . | . . Highest Temperature 100 | 60 100 Average Temperature 28 | 29 28 Received Heat Transfer 273 | . 273 Siege Activations . | . . Robots Corrupted . | . . Combat Hostiles . | . . Parts Fried . | . . Impact Corruptions . | . . Robots Melted . | . . Combat Hostiles . | . . Parts Melted . | . . Heat Transferred 518 | 111 407 Parts Sabotaged . | . . Parts Stolen . | . . Parts Stripped . | . . Power Chain Reactions . | . . Alert | -11 -10 ------- Run | Yrd Mat Peak Influence 277 | 20 277 Initial 7 | . 7 Average 21 | . 158 Maximum Alert Level 1 | . 1 Low Security (%) 96 | 100 74 Level 1 3 | . 25 Level 2 . | . . Level 3 . | . . Level 4 . | . . Level 5 . | . . High Security . | . . Max Security . | . . Squads Dispatched 3 | . 3 Investigation 2 | . 2 Extermination . | . . Reinforcement 1 | . 1 Assault . | . . Garrison . | . . Intercept . | . . Searches Triggered . | . . Construction Impeded . | . . Haulers Reinforced . | . . Active Scanning Responses . | . . Cargo Convoy Interrupts . | . . Stealth | -11 -10 --------- Run | Yrd Mat Distress Signals 2 | . 2 Communications Jammed . | . . Distress Signals . | . . Times Spotted 25 | 1 24 Peak Tracking Total 5 | 1 5 Tactical Retreats . | . . Traps | -11 -10 ------- Run | Yrd Mat Traps Triggered 1 | . 1 Indirectly . | . . Trap Hack Attempts . | . . Triggered . | . . Disarmed . | . . Reprogrammed . | . . Reused . | . . Traps Extracted . | . . Installed . | . . Triggered . | . . Machines | -11 -10 ---------- Run | Yrd Mat Machines Disabled . | . . Max in Single Turn . | . . Machines Repaired . | . . Machines Dismantled . | . . Machines Sabotaged . | . . Overloaded Fab Kills . | . . Hacking | -11 -10 --------- Run | Yrd Mat Machines Accessed 4 | . 4 Terminals 3 | . 3 Fabricators . | . . Repair Stations . | . . Recycling Units 1 | . 1 Scanalyzers . | . . Garrison Access . | . . Total Hacks 19 | . 19 Successful 7 | . 7 Failed 12 | . 12 Catastrophic 2 | . 2 Database Lockouts . | . . Manual 7 | . 7 Terminals 15 | . 15 Fabricators . | . . Repair Stations . | . . Recycling Units 4 | . 4 Scanalyzers . | . . Garrison Access . | . . Terminal Hacks 5 | . 5 Robot Analysis 2 | . 2 Prototype ID Bank 1 | . 1 Terminal Index 1 | . 1 Zone Layout 1 | . 1 Fabricator Hacks . | . . Repair Station Hacks . | . . Recycling Unit Hacks 1 | . 1 Report Inventory 1 | . 1 Scanalyzer . | . . Garrison Access Hacks . | . . Unauthorized Hacks 1 | . 1 Terminals . | . . Fabricators . | . . Repair Stations . | . . Recycling Units 1 | . 1 Tunnel 1 | . 1 Scanalyzers . | . . Garrison Access . | . . Data Cores Recovered . | . . Used . | . . Hacking Detections 4 | . 4 Full Trace Events 1 | . 1 Feedback Events 1 | . 1 Corruption 1 | . 1 Feedback Blocked . | . . Robot Schematics Acquired . | . . Robots Built . | . . Authchips . | . . Time . | . . Total Robot Build Rating . | . . Part Schematics Acquired . | . . Parts Built . | . . Authchips . | . . Time . | . . Total Part Build Rating . | . . Parts Repaired . | . . Time . | . . Parts Recycled . | . . Recycled Matter . | . . Retrieved Matter . | . . Retrieved Components . | . . Parts Scanalyzed . | . . Part Schematics Acquired . | . . Parts Damaged . | . . Bothacking | -11 -10 ------------ Run | Yrd Mat Used RIF Installer . | . . Robots Hacked . | . . Non-combat . | . . Combat . | . . Robot Hacks Applied . | . . Relay Couplers Released . | . . Fabnet Peak Effective % . | . . Robots Rewired . | . . Allies Hacked . | . . Hacks Repelled . | . . Allies | -11 -10 -------- Run | Yrd Mat Total Allies . | . . Largest Group . | . . Highest-Rated Group . | . . Highest-Rated Ally . | . . Total Orders . | . . Ally Attacks . | . . Total Damage . | . . Kills . | . . Allies Corrupted . | . . Allies Melted . | . . Intel | -11 -10 ------- Run | Yrd Mat Robot Analysis Total 2 | . 2 Derelict Logs Recovered . | . . Drone Launches . | . . Drone Recoveries . | . . Exploration | -11 -10 ------------- Run | Yrd Mat Turns Passed 4788 | 4138 650 Spaces Moved 665 | 292 373 Core 290 | 6 284 Treads 65 | 65 . Legs . | . . Wheels 281 | 221 60 Hover 29 | . 29 Flight . | . . Fastest Speed 50 | 50 50 Average Speed 92 | 97 89 Slowest Speed 160 | 160 100 Overloaded Moves . | . . Propulsion Burnouts . | . . Robots Hopped . | . . Cave-ins Triggered . | . . Exploration Rate (%) 56 | 40 72 Regions Visited 1 Branch Regions . Pre-discovered Areas 1 | . 1 Known Exits Taken . | . . Unknown Exits Taken 1 | 1 . Scrap Searched . | . . Spaces Dug . | . . Terrain Destroyed . | . . Melee . | . . Projectile . | . . AOE . | . . Terrain Rammed . | . . Walls Destroyed . | . . Machines Disabled . | . . Actions | -11 -10 --------- Run | Yrd Mat Total 4723 | 4138 585 Wait 3913 | 3836 77 Move 664 | 291 373 Hop . | . . Pick Up 3 | 2 1 Fast Attach 7 | 5 2 Attach 1 | 1 . Detach . | . . Swap 2 | . 2 Drop 4 | . 4 Fire 61 | 3 58 Melee . | . . Ram 55 | . 55 Kick . | . . Crush . | . . Escape Stasis . | . . Rewire . | . . Trap . | . . Miscellaneous 13 | . 13 Route ------- -11/Scrapyard -10/Materials (discovered 3 exits: [*Mat x2] / [*Min]) History --------- Turn | Location | Event 6 | -11/Scrapyard | Upgraded with Propulsion slot (x1) 6 | -11/Scrapyard | Upgraded with Utility slot (x1) 6 | -11/Scrapyard | Upgraded with Weapon slot (x1) 6 | -11/Scrapyard | Discovered new exit (range 15) 3827 | -11/Scrapyard | Assembled infested the area 4139 | -11/Scrapyard | Entered Materials 4155 | -10/Materials | Build established: Mutant 4331 | -10/Materials | Discovered new exit (range 16) 4567 | -10/Materials | Core integrity fell below 50% 4581 | -10/Materials | Reached level 2 4605 | -10/Materials | Discovered new exit (range 10) 4696 | -10/Materials | Discovered new exit (range 14) 4744 | -10/Materials | Core integrity fell below 20% 4750 | -10/Materials | System corruption reached 10% 4789 | -10/Materials | Core destroyed Last Messages --------------- 04766_ System corrupted: Matter fused (-10). 04767_ Slammed into R-06 Scavenger. 04772_ R-06 Scavenger collects Lgt. Ion Engine. 04772_ Acquired 8 matter. 04774_ Slammed into R-06 Scavenger. 04774_ Destabilizing: System corrupted (+1). 04775_ Slammed into R-06 Scavenger. 04775_ Destabilizing: System corrupted (+1). 04776_ Slammed into R-06 Scavenger. 04776_ Assault Rifle broken. 04776_ Destabilizing: Short circuit. 04777_ Slammed into R-06 Scavenger. 04777_ Destabilizing: Core damaged (-24). 04779_ Slammed into R-06 Scavenger. 04783_ Slammed into W-16 Scout. 04784_ Slammed into R-06 Scavenger. 04784_ Destabilizing: System corrupted (+1). 04786_ Slammed into R-06 Scavenger. 04786_ R-06 Scavenger knocked back. 04787_ Slammed into R-06 Scavenger. Map ----- +----------------------------------------------------+ | | | | | | | | | | | | | ??????????????????????????????????????????#??????? | | ?????????????????????????????????????????????????? | | ?????????????????????????????????????????????????? | | ???????????????????????????????? ?????#??????????? | | ?????????????????????????????????????????????????? | | ????????#####???????????????#+#############???# "" | | ???????? ???????????????? ## #???# "Y | | ???????? ????????????? ?? ## """ #???# | | ???????? ????????????? ?? ## """ #???# | | ????????# #????????????????# ## """ #???# " | | ????????# #????##????????#?# ## ##### " | | ????????# #?? #?????????# ## """ # # " | | ????????# ##? #? ?????#?# ## """ # < # | | ????????# ## #?????????# ## """ # # " | | ????????# ## """ #????????## ## + + " | | ????????# ## """ #????????## ## # # " | | ????????+ ## """ #?######## # # # | | ????????# ## #?# t##+###### #### | | ????????# ## """ ### ## ##### #?? | | ????????# *## """%+% %%r@r #?? | | #???????# =%## """ ####+##### # T #?? | | ??????# %## %## ?###%### [ #?? | | # ???#??# ## %% ## ####+### #### #?? | | # ###???# % ####+#### # % # #??########? | | #####% ## % ## # !! # #??#???????? | | ! =%%%%%%%% ## # ! + #??????????? | | [=%%%%%%[% ## """ # # #???????#??? | | % == ## """ # # #??##??###?? | | ########## ! ## """ ######## ########???? | | ####????????## ### """ # | # # #???? | | ??????????????# #?# ??? # # # #?#?? | | ?#???#????????# #?##???### # # "" #???? | | ?????????????# #???? ???? """ + + Y" #???# | | ?????????????# #?????? ?? """ # # "" #???? | | ???#?????????? ??????????""" # #] #???? | | ?????????????? #???????#?###### ########??#? | | ?????????????| #??????######## #??? ?#???? | | ???? ? ??????" < #???"" # #?????????? | | ????????????|| #???"" + T #?#?#?????? | | ?#???????????" #??????# #?? ??##### | | #??????????? #??????######## ##????# | | ##???????????# #??????????????## ## ##??# | | +???????????# ????????? ######### ## ##?# | | #???????????# ?????????# # ## #?# | +----------------------------------------------------+ Best States ------------- Heat Dissipation 25 Energy Generation 10 Energy Capacity 250 Matter Stores 300 Matter Capacity 300 Sight Range 16 Robot Scan Range 14 Terrain Scan Range 16 Terrain Scan Density 10 Evasion (%) 53 Recoil Reduction 1 Item Schematics ----------------- None Robot Schematics ------------------ None Fabricated ------------ Nothing Alien Tech Used ----------------- None Achievements -------------- None Challenges ------------ None RPGLIKE | -11 -10 --------- Run | Yrd Mat Levels Raised 1 | . 1 XP Earned 4785 | 3100 1685 XP Spent 2250 | 2250 . Upgrades 5 | 5 . Propulsion Slot 1 | 1 . Utility Slot 1 | 1 . Weapon Slot 1 | 1 . Inventory Capacity 2 | 2 . Protomatter Created 93 | . 93 Integrity Restored 279 | . 279 Core 279 | . 279 Protomatter Decayed 8 | 8 . Game ------ Seed FlakLobotomyMagmablaster Manual? 0 Play Time 00:15:23 Cumulative 590.3 hours Start 2024.03.12 @ 15:32:09 End 2024.03.12 @ 15:51:25 Sessions 1 Manual Loads 0 Difficulty Rogue Special Mode Winter2019/RPGLIKE Game No. 226 Rogue 204 Adventurer 3 Explorer 19 Win Type - Total 13 Types 8/2/1/1/0/1/0/0/0 Lore% 88 Gallery% 95 Achievement% 82 Wizard Run 0 Options --------- Layout 2 ASCII 0 Keyboard 0 Movement Numpad Keybinds 0 Fullscreen 2 Font 24/Smallcaps Map View 50x44 Zoom Use 0% Tactical HUD 1 Map Filters NONE Filters NONE Steam 1 RUN: ce9ed060-4a1b-4904-83d4-274e61d68a93